[Event "FIDE World School-ch O-15 2025"]
[Site "Vrnjacka Banja"]
[Date "2025.03.26"]
[Round "7.6"]
[White "Ashikmamutov, Saidkhon"]
[Black "Mane, Arnav"]
[Result "1-0"]
[Annotator "NA RC"]
[ECO "A01"]
[WhiteElo "1978"]
[BlackElo "1748"]
[PlyCount "63"]
[EventDate "2025.03.19"]
[EventType "swiss"]
[EventCountry "SRB"]
[SourceTitle "playchess.com"]
[Source "ChessBase"]
[SourceQuality "1"]
[TimeControl "5400+30"]

1. b3 {[%emt 0:01:11]} e5 {[%emt 0:01:36]} 2. Bb2 {[%emt 0:00:11]} Nc6 {[%emt 0:00:06]} 3. e3 {[%emt 0:00:06]} d6 {[%emt 0:00:32]} 4. Bb5 {[%emt 0:00:12]} Nge7 {[%emt 0:03:21]} 5. d4 {[%emt 0:01:07]} a6 {[%emt 0:00:33]} 6. Be2 {[%emt 0:02:25]} exd4 {[%emt 0:03:31]} 7. exd4 {[%emt 0:00:16]} d5 {[%emt 0:00:06]} 8. Nf3 {[%emt 0:00:04]} g6 {[%emt 0:00:23]} 9. O-O {[%emt 0:05:15]} Bg7 {[%emt 0:00:10]} 10. Nbd2 {[%emt 0:00:13]} O-O {[%emt 0:02:10]} 11. c3 {[%emt 0:04:08]} Nf5 {[%emt 0:01:35]} 12. b4 {[%emt 0:02:21]} Nce7 {[%emt 0:11:20]} 13. a4 {[%emt 0:02:06]} b6 {[%emt 0:05:28]} 14. a5 {[%emt 0:03:51]} Nc6 {[%emt 0:06:56]} 15. Nb3 {[%emt 0:02:09]} b5 {[%emt 0:07:08]} 16. Nc5 {[%emt 0:09:48]} Nd6 {[%emt 0:00:38]} 17. Bd3 {[%emt 0:00:51]} Nb7 {[%emt 0:05:20]} 18. Nxb7 {[%emt 0:04:09]} Bxb7 {[%emt 0:00:06]} 19. Nd2 {[%emt 0:00:40]} Bc8 {[%emt 0:02:46]} 20. Nb3 {[%emt 0:00:35]} Nb8 {[%emt 0:00:40]} 21. Qf3 {[%emt 0:01:26]} c6 {[%emt 0:03:45]} 22. Rae1 {[%emt 0:00:12]} Ra7 {[%emt 0:10:23]} 23. Bc1 {[%emt 0:19:05]} Qh4 {[%emt 0:00:30]} 24. Bf4 {[%emt 0:00:30]} Bg4 {[%emt 0:00:30]} 25. Qe3 {[%emt 0:05:06]} Nd7 {[%emt 0:16:07]} 26. h3 {[%emt 0:01:21]} Bxh3 {[%emt 0:07:43]} 27. gxh3 {[%emt 0:00:06]} h6 {[%emt 0:02:17]} 28. Qg3 {[%emt 0:00:50]} Qf6 {[%emt 0:00:30]} 29. Bd6 {[%emt 0:00:08]} Rc8 {[%emt 0:00:27]} 30. Be7 {[%emt 0:00:05]} Qe6 {[%emt 0:00:54]} 31. Rxe6 {[%emt 0:00:09]} fxe6 {[%emt 0:00:02]} 32. Qxg6 {[%emt 0:00:09]} 1-0

[Event "FIDE World School-ch O-15 2025"]
[Site "Vrnjacka Banja"]
[Date "2025.03.26"]
[Round "7.7"]
[White "Markovic, Kosta"]
[Black "Dandeniya, D D L N"]
[Result "1/2-1/2"]
[Annotator "NA RC"]
[ECO "C16"]
[WhiteElo "1903"]
[BlackElo "1881"]
[PlyCount "57"]
[EventDate "2025.03.19"]
[EventType "swiss"]
[EventCountry "SRB"]
[SourceTitle "playchess.com"]
[Source "ChessBase"]
[SourceQuality "1"]
[TimeControl "5400+30"]

1. e4 {[%emt 0:00:03]} e6 {[%emt 0:00:11]} 2. d4 {[%emt 0:00:06]} d5 {[%emt 0:00:08]} 3. Nc3 {[%emt 0:00:05]} Bb4 {[%emt 0:00:09]} 4. e5 {[%emt 0:00:17]} Ne7 {[%emt 0:00:12]} 5. Nf3 {[%emt 0:01:21]} Bxc3+ {[%emt 0:12:55]} 6. bxc3 {[%emt 0:00:24]} b6 {[%emt 0:00:08]} 7. Bd3 {[%emt 0:05:18]} Ba6 {[%emt 0:00:15]} 8. O-O {[%emt 0:00:53]} Qd7 {[%emt 0:00:37]} 9. a4 {[%emt 0:01:33]} Bxd3 {[%emt 0:01:17]} 10. cxd3 {[%emt 0:01:37]} Nbc6 {[%emt 0:00:36]} 11. Bf4 {[%emt 0:05:40]} Na5 {[%emt 0:01:44]} 12. Nd2 {[%emt 0:01:23]} Rc8 {[%emt 0:01:52]} 13. Nb3 {[%emt 0:01:00]} Nxb3 {[%emt 0:01:14]} 14. Qxb3 {[%emt 0:00:10]} Nc6 {[%emt 0:00:10]} 15. Qb5 {[%emt 0:09:03]} Na5 {[%emt 0:00:26]} 16. Qxd7+ {[%emt 0:00:35]} Kxd7 {[%emt 0:00:05]} 17. Be3 {[%emt 0:00:30]} f5 {[%emt 0:00:40]} 18. exf6 {[%emt 0:00:28]} gxf6 {[%emt 0:00:03]} 19. Rab1 {[%emt 0:00:38]} h5 {[%emt 0:06:07]} 20. f3 {[%emt 0:01:15]} h4 {[%emt 0:00:35]} 21. Kf2 {[%emt 0:00:52]} Rhg8 {[%emt 0:07:15]} 22. Rg1 {[%emt 0:00:45]} Ke7 {[%emt 0:02:21]} 23. g4 {[%emt 0:00:48]} hxg3+ {[%emt 0:01:01]} 24. hxg3 {[%emt 0:00:34]} Rh8 {[%emt 0:00:57]} 25. Rh1 {[%emt 0:00:05]} Nc6 {[%emt 0:15:26]} 26. g4 {[%emt 0:01:24]} e5 {[%emt 0:04:41]} 27. dxe5 {[%emt 0:02:56]} fxe5 {[%emt 0:00:06]} 28. d4 {[%emt 0:01:00]} a5 {[%emt 0:08:22]} 29. dxe5 {[%emt 0:00:37]} 1/2-1/2

[Event "FIDE World School-ch O-15 2025"]
[Site "Vrnjacka Banja"]
[Date "2025.03.26"]
[Round "7.8"]
[White "Daksh Santosh Nathani"]
[Black "Leu, Dragos Stefan"]
[Result "1-0"]
[Annotator "TA"]
[ECO "B20"]
[WhiteElo "1664"]
[BlackElo "2165"]
[PlyCount "91"]
[EventDate "2025.03.19"]
[EventType "swiss"]
[EventCountry "SRB"]
[SourceTitle "playchess.com"]
[Source "ChessBase"]
[SourceQuality "1"]
[TimeControl "5400+30"]

{[%evp 9,91,-16,-10,-11,-5,-24,-5,-19,0,-51,-32,-71,-71,-58,-59,-55,-20,-73,-69,-97,-91,-91,-79,-266,-74,-84,-22,-16,-29,-143,-145,-157,-159,-193,-191,-180,-106,-108,-95,-92,-62,-117,-103,-102,-40,-98,-41,-58,-45,-49,-44,-66,-48,-69,-53,-63,-48,-46,0,-3,0,0,0,0,0,0,10,6,804,0,0,0,926,910,976,976,958,923,861,831,1006,885,1789,1627]} 1. e4 {[%emt 0:00:20]} c5 {[%emt 0:00:07]} 2. a3 {[%emt 0:00:06]} d6 {[%emt 0:03:01]} 3. Nc3 {[%emt 0:00:06]} Nc6 {[%emt 0:29:10]} 4. Bc4 {[%emt 0:00:16]} Nf6 {[%emt 0:02:41]} 5. d3 {[%emt 0:00:07]} e6 {[%emt 0:01:07]} 6. Ba2 {[%emt 0:00:07] B20: Sicilian: Unusual White 2nd moves.} Be7 {[%emt 0:01:08]} 7. f4 {[%emt 0:00:48]} O-O {[%emt 0:06:14]} 8. Nf3 {[%emt 0:00:49] The position is equal.} d5 {[%emt 0:02:42]} 9. Qe2 {[%emt 0:10:31] [#]} (9. O-O $11) 9... b5 $146 {[%emt 0:14:50]} (9... a6 10. O-O b5 11. e5 Nd7 12. Nd1 Re8 13. c3 Nf8 14. d4 Qb6 15. Be3 a5 {0-1 Kilpela,P (2083)-Nystrom,L Helsinki We HSL 7th 2010 (4)}) 10. O-O {[%emt 0:07:33]} (10. e5 Nd7) 10... b4 {[%emt 0:04:42]} 11. Nd1 {[%emt 0:01:01]} dxe4 {[%emt 0:09:32]} 12. dxe4 {[%emt 0:00:17]} Nd4 {[%emt 0:00:47]} 13. Qd3 {[%emt 0:03:19]} (13. Nxd4 $11 Qxd4+ 14. Nf2 bxa3 15. Rb1 (15. c3 axb2 16. Bxb2 Qd7 $15)) 13... Qb6 $17 {[%emt 0:08:42][%cal Oc5c4]} 14. Nf2 {[%emt 0:10:24]} Rd8 $1 {[%emt 0:01:22]} 15. Bc4 {[%emt 0:05:14] Repels Ba6} Bb7 {[%emt 0:01:39]} 16. g4 $2 {[%emt 0:04:45]} (16. Re1 $17 {might work better.}) 16... Qc6 $2 {[%emt 0:04:54]} (16... Nxf3+ $19 {has better winning chances.} 17. Qxf3 Rd4) 17. Ne5 {[%emt 0:01:05][%csl Od4] Strong Square Black (d4)} Qc7 {[%emt 0:00:34]} (17... Qc8 $1 $17) 18. g5 $11 {[%emt 0:03:46]} Nd7 {[%emt 0:00:43]} 19. Nfg4 {[%emt 0:09:39]} (19. Nxf7 $1 $11 {keeps the balance.} Kxf7 20. c3) 19... Nxe5 $17 {[%emt 0:01:41]} 20. Nxe5 {[%emt 0:00:19]} Nc6 {[%emt 0:00:41]} 21. Qf3 {[%emt 0:00:59][%cal Oe5f7]} Nxe5 {[%emt 0:00:23]} 22. fxe5 {[%emt 0:00:02]} Bf8 {[%emt 0:00:12]} (22... Qxe5 $19 {and ...Qd4+ would now be decisive} 23. Qxf7+ Kh8) 23. Be3 {[%emt 0:40:27]} Rd7 {[%emt 0:03:20]} (23... Qxe5 $2 24. Qxf7+ Kh8 25. Qxb7 $18) 24. Qf4 {[%emt 0:00:00]} Rad8 {[%emt 0:01:03]} 25. axb4 {[%emt 0:00:00]} ({White should try} 25. h4 $15) 25... cxb4 {[%emt 0:00:01]} 26. b3 {[%emt 0:00:00]} Bc5 {[%emt 0:00:41]} (26... a5 $17 27. Bd3 g6) 27. Rae1 {[%emt 0:00:00] [#]} (27. Bxc5 $15 Qxc5+ 28. Kg2) 27... Bxe3+ {[%emt 0:01:26]} ({Black should try} 27... a5 $1 $17 28. h4 g6) 28. Rxe3 $15 {[%emt 0:00:00]} Rd1 {[%emt 0:00:26]} 29. Ref3 {[%emt 0:00:00][%cal Rf4f7]} Rxf1+ {[%emt 0:00:24]} 30. Rxf1 {[%emt 0:00:00]} Rd7 {[%emt 0:00:43]} 31. Rf2 {[%emt 0:00:00][%cal Oc4e6]} Qc6 {[%emt 0:00:30]} 32. Bd3 {[%emt 0:00:00]} a5 {[%emt 0:00:31]} 33. h4 {[%emt 0:00:00][%cal Bh2h4,Bh4h5,Bh5h6][%mdl 32]} a4 {[%emt 0:00:32]} 34. bxa4 {[%emt 0:00:00]} Qxa4 {[%emt 0:00:26]} (34... Ba6 {simplifies} 35. Bxa6 Qxa6 36. h5 Qxa4 37. Kg2 Qa6) 35. h5 {[%emt 0:00:00]} Qa8 {[%emt 0:00:31]} 36. h6 {[%emt 0:00:00]} Qa1+ {[%emt 0:00:27]} 37. Kh2 {[%emt 0:00:00]} Qd1 {[%emt 0:00:25]} 38. Rf3 {[%emt 0:00:00]} Bc6 $2 {[%emt 0:00:40][%mdl 8192] [#]} (38... Ba6 $11 39. Bxa6 Rd2+ 40. Rf2 Rxf2+ 41. Qxf2 Qh5+ 42. Kg2 Qxg5+ 43. Kf3 Qxh6) 39. g6 $2 {[%emt 0:00:00]} hxg6 $11 {[%emt 0:00:26]} 40. hxg7 $40 {[%emt 0:00:00][%mdl 128] White has some attack.} Kxg7 $2 {[%emt 0:00:29][%mdl 8192]} (40... g5 $11 41. Qf6 Qd2+ 42. Rf2 Qe1) 41. Rh3 $18 {[%emt 0:00:00] Threatening mate with Qf6+. White is clearly winning.} Kg8 {[%emt 0:00:31]} 42. Qh6 {[%emt 0:00:00][%csl Gh3][%cal Rh6h8]} Qh5 {[%emt 0:00:31]} 43. Rxh5 {[%emt 0:00:00]} gxh5 {[%emt 0:00:03]} 44. Qe3 {[%emt 0:00:00]} Rb7 {[%emt 0:00:52]} 45. Qc5 {[%emt 0:00:00]} Bd7 {[%emt 0:00:17]} 46. Ba6 {[%emt 0:00:00] Quite a comeback for White.   Weighted Error Value: White=0.40/Black=0.62  Loses game:     	White=1     	Black=2      Missed win:     	White=1     	Black=1      Mistake:       	White=5     	Black=4      Inaccurate:     	White=1     	Black=3      OK:         	White=11    	Black=9      Best:        	White=2     	Black=1      Strong:       	---       	Black=1} 1-0